Cogmind - Beta 16 @@@ ROGUE MODE // 2025.11.15 @ 19:09:50 Player: Jsswann Result: Destroyed by G-34 Mercenary with Small Laser Performance ------------- Evolutions (0) 0 Regions Visited (1) 200 Robots Destroyed (12) 60 Value Destroyed (348) 348 Prototype IDs (0) 0 Alien Tech Used (0) 0 Bonus (0) 0 TOTAL SCORE: 608 Bonus ------- None Cogmind --------- Core Integrity 0/250 Matter 370/400 Energy 32/100 System Corruption 1% Temperature Cool (37) Movement Hovering (60) Location -10/Materials Parts ------- > --- POWER (1) -------- (None) > --- PROPULSION (2) --- Hover Unit > --- UTILITY (2) ------ Medium Matter Pod Signal Interpreter > --- WEAPON (2) ------- Mining Laser Mining Laser > --- INVENTORY (5) ---- Heat Sink Peak State ------------ > --- POWER ------------ Light Nuclear Core > --- PROPULSION ------- Aluminum Leg Aluminum Leg > --- UTILITY ---------- Medium Matter Pod Signal Interpreter > --- WEAPON ----------- EM Pulse Gun Assault Rifle > --- INVENTORY -------- Heat Sink [Rating: 9] Favorites ----------- Power Light Ion Engine Engine Light Ion Engine Power Core Light Nuclear Core Propulsion Aluminum Leg Leg Aluminum Leg Hover Unit Hover Unit Utility Medium Matter Pod Device Heat Sink Storage Medium Matter Pod Processor Signal Interpreter Weapon Assault Rifle Energy Gun EM Pulse Gun Ballistic Gun Assault Rifle Special Weapon Mining Laser Build | -11 -10 ------- Run | Yrd Mat Slots Evolved . | . . Power . | . . Propulsion . | . . Utility . | . . Weapon . | . . Parts Attached 15 | 6 9 Power 2 | 1 1 Engine 1 | 1 . Core 1 | . 1 Reactor . | . . Propulsion 4 | 2 2 Treads . | . . Leg 3 | 2 1 Wheel . | . . Hover 1 | . 1 Flight . | . . Utility 4 | 1 3 Device 1 | 1 . Storage 2 | . 2 Processor 1 | . 1 Hackware . | . . Protection . | . . Artifact . | . . Weapon 5 | 2 3 Energy Gun 2 | 1 1 Energy Cannon . | . . Ballistic Gun 1 | 1 . Ballistic Cannon . | . . Launcher . | . . Special Weapon 2 | . 2 Impact Weapon . | . . Slashing Weapon . | . . Piercing Weapon . | . . Special Melee Weapon . | . . Unidentified Prototypes . | . . Corrupted Parts 1 | . 1 System Corruption 1 | . 1 Parts Lost 7 | . 7 Power 2 | . 2 Propulsion 2 | . 2 Utility . | . . Weapon 3 | . 3 Highest Loss Streak 6 | . 6 To Critical Strikes . | . . Average Backups . | . 1 Power . | . . Propulsion . | . . Utility . | . . Weapon . | . . Tool/Special . | . . Unused Backups 2 | 2 . Power . | . . Propulsion 2 | 2 . Utility . | . . Weapon . | . . Tool/Special . | . . Average Slot Usage (%) 89 | . 89 Engine 7 | . 7 Core 3 | . 3 Leg 24 | . 24 Hover 1 | . 1 Device 3 | . 3 Storage 11 | . 11 Processor 10 | . 10 Energy Gun 12 | . 12 Ballistic Gun 11 | . 11 Special Weapon 1 | . 1 Peak Build Rating 9 | 6 9 Average Rating 6 | 3 6 On Entrance 3 | . 6 Avg Prop Armor Cover (%) . | . . Naked Turns . | . . Heaviest Build 11 | 8 11 Greatest Support 20 | 20 20 Greatest Overweight (x) . | . . Average Overweight (x) . | . . Largest Inventory Capacity 5 | 5 5 Average Capacity 5 | 5 5 Most Carried 4 | 4 3 Average Carried . | . 1 Final Capacity 5 | 5 5 Final Carried 1 | . 1 Class Distribution -------------------- 100% | Mutant Dominant Class ---------------- Mutant | -10/Materials Resources | -11 -10 ----------- Run | Yrd Mat Matter Collected 482 | 266 216 Remotely . | . . Salvage Created 423 | 45 378 Parts 22 | 1 21 Haulers Intercepted . | . . Recyclers Shooed 1 | . 1 Parts Field Recycled . | . . Retrieved Matter . | . . Parts Self-Destructed . | . . Prevented . | . . Parts Restored . | . . Kills | -11 -10 ------- Run | Yrd Mat Combat Hostiles Destroyed 8 | 1 7 Guns 8 | 1 7 Classes Destroyed 4 | 1 3 Worker 1 | . 1 Tunneler 1 | . 1 Watcher 2 | . 2 Grunt 8 | 1 7 Best Kill Streak 5 | 1 5 Combat Bots Only 3 | 1 3 Max Kills in Single Turn 1 | 1 1 Gunslinging . | . . Exploded . | . . Melee . | . . Uniques/NPCs Destroyed . | . . Combat | -11 -10 -------- Run | Yrd Mat Hostile Shots Fired 105 | 4 101 Missed 35 | . 35 Hits 70 | 4 66 Projectile 70 | 4 66 Critical Strikes 2 | . 2 Damage Taken 880 | 45 835 Core 252 | . 252 Absorbed by Shields . | . . Core Remaining (%) 100 | 100 . Volleys Fired 48 | 2 46 Largest 2 | 2 2 Hottest 200 | 60 200 Shots Fired 77 | 4 73 Gun 75 | 4 71 Cannon . | . . Launcher . | . . Special 2 | . 2 Kinetic 29 | 2 27 Thermal 20 | . 20 Explosive . | . . Electromagnetic 28 | 2 26 Robot Hit Streak 5 | 1 5 Robot Miss Streak 3 | 2 3 Penetration Max . | . . Secondary Targets 1 | . 1 Max Gunslinging Chain 1 | . 1 Shots Hit Robots 43 | 1 42 Core Hits 22 | 1 21 Critical Kills . | . . Critical Parts Destroyed . | . . Critical Strikes 1 | . 1 Corrupt 1 | . 1 Melee Attacks . | . . Impact . | . . Slashing . | . . Piercing . | . . Sneak Attacks . | . . Combat Hostiles . | . . Follow-up Attacks . | . . Damage Inflicted 887 | 15 872 Guns 655 | 15 640 Cannons . | . . Explosions 208 | . 208 Melee . | . . Ramming . | . . Kinetic 186 | . 186 Thermal 383 | . 383 Explosive . | . . Electromagnetic 318 | 15 303 Impact . | . . Slashing . | . . Piercing . | . . Highest Corruption 1 | . 1 Average Corruption 1 | . 1 Corruption Purged . | . . Corruption Blocked . | . . Effects 1 | . 1 Energy Discharges 1 | . 1 Overload Shots . | . . Overflow Damage 6 | . 6 Projectiles . | . . Explosions 6 | . 6 Melee . | . . Knockbacks . | . . Impact . | . . Kinetic . | . . Secondary . | . . Self-Inflicted Damage . | . . Shots . | . . Rammed . | . . Targets Rammed . | . . Kicked . | . . Crushed . | . . Highest Temperature 270 | 12 270 Average Temperature 71 | 8 73 Received Heat Transfer 519 | 24 495 Siege Activations . | . . Martial Activations . | . . Shielding Activations . | . . Robots Disrupted . | . . Combat Hostiles . | . . Robots Corrupted . | . . Combat Hostiles . | . . Parts Fried . | . . Impact Corruptions . | . . Robots Melted . | . . Combat Hostiles . | . . Parts Melted . | . . Heat Transferred 750 | . 750 Parts Sabotaged . | . . Parts Stolen . | . . Parts Stripped . | . . Power Chain Reactions 3 | . 3 Alert | -11 -10 ------- Run | Yrd Mat Maximum Alert Level . | . . Low Security (%) 100 | 100 100 Level 1 . | . . Level 2 . | . . Level 3 . | . . Level 4 . | . . Level 5 . | . . High Security . | . . Max Security . | . . Peak Influence 65 | 20 65 Initial 13 | . 13 Average 19 | 3 22 Influence Increases 288 | 20 268 Destroy 0b10 Robot/C 160 | 20 140 Destroy 0b10 Robot/NC 20 | . 20 Destroy Leader 34 | . 34 Successful Hack 5 | . 5 Disable Machine 15 | . 15 Destroy Structure 9 | . 9 Lose Combat Pursuer 45 | . 45 Influence Decreases 230 | . 230 Entered New Map 7 | . 7 Time Decay 153 | . 153 Lost Part 70 | . 70 Squads Dispatched 2 | . 2 Investigation 1 | . 1 Extermination . | . . Reinforcement 1 | . 1 Assault . | . . Garrison . | . . Intercept . | . . Searches Triggered . | . . Construction Impeded . | . . Haulers Reinforced . | . . Active Scanning Responses . | . . Cargo Convoy Interrupts . | . . Stealth | -11 -10 --------- Run | Yrd Mat Distress Signals 2 | . 2 Communications Jammed . | . . Distress Signals . | . . Times Spotted 19 | 1 18 Peak Tracking Total 5 | 1 5 Tactical Retreats 1 | . 1 Traps | -11 -10 ------- Run | Yrd Mat Traps Triggered 1 | . 1 Indirectly . | . . Trap Hack Attempts . | . . Triggered . | . . Disarmed . | . . Reprogrammed . | . . Reused . | . . Traps Extracted . | . . Installed . | . . Triggered . | . . Machines | -11 -10 ---------- Run | Yrd Mat Machines Disabled 2 | . 2 Max in Single Turn 1 | . 1 Machines Repaired . | . . Machines Dismantled . | . . Machines Sabotaged . | . . Overloaded Fab Kills . | . . Hacking | -11 -10 --------- Run | Yrd Mat Machines Accessed 1 | . 1 Terminals 1 | . 1 Fabricators . | . . Repair Stations . | . . Recycling Units . | . . Scanalyzers . | . . Garrison Access . | . . Total Hacks 3 | . 3 Successful 2 | . 2 Failed 1 | . 1 Catastrophic 1 | . 1 Database Lockouts . | . . Manual . | . . Terminals 3 | . 3 Fabricators . | . . Repair Stations . | . . Recycling Units . | . . Scanalyzers . | . . Garrison Access . | . . Terminal Hacks 2 | . 2 Investigation Status 1 | . 1 Hauler Manifests 1 | . 1 Fabricator Hacks . | . . Repair Station Hacks . | . . Recycling Unit Hacks . | . . Scanalyzer . | . . Garrison Access Hacks . | . . Unauthorized Hacks . | . . Terminals . | . . Fabricators . | . . Repair Stations . | . . Recycling Units . | . . Scanalyzers . | . . Garrison Access . | . . Data Cores Recovered . | . . Used . | . . Hacking Detections 1 | . 1 Full Trace Events . | . . Feedback Events . | . . Feedback Blocked . | . . Robot Schematics Acquired . | . . Robots Built . | . . Authchips . | . . Time . | . . Total Robot Build Rating . | . . Part Schematics Acquired . | . . Parts Built . | . . Authchips . | . . Time . | . . Total Part Build Rating . | . . Part Studies Acquired . | . . Parts Repaired . | . . Time . | . . Parts Recycled . | . . Recycled Matter . | . . Retrieved Matter . | . . Retrieved Components . | . . Parts Scanalyzed . | . . Part Schematics Acquired . | . . Parts Damaged . | . . Bothacking | -11 -10 ------------ Run | Yrd Mat Used RIF Installer . | . . Robots Hacked . | . . Non-combat . | . . Combat . | . . Robot Hacks Applied . | . . Relay Couplers Released . | . . Fabnet Peak Effective % . | . . Robots Rewired . | . . Allies Hacked . | . . Hacks Repelled . | . . Allies | -11 -10 -------- Run | Yrd Mat Total Allies . | . . Largest Group . | . . Highest-Rated Group . | . . Highest-Rated Ally . | . . Total Orders . | . . Ally Attacks . | . . Total Damage . | . . Kills . | . . Allies Corrupted . | . . Allies Melted . | . . Intel | -11 -10 ------- Run | Yrd Mat Active Infowar (turns) . | . . Robot Analysis Total . | . . Derelict Logs Recovered . | . . Drone Launches . | . . Drone Recoveries . | . . Exploration | -11 -10 ------------- Run | Yrd Mat Turns Passed 636 | 97 539 Spaces Moved 464 | 80 384 Core 71 | 28 43 Treads . | . . Legs 338 | 52 286 Wheels . | . . Hover 55 | . 55 Flight . | . . Fastest Speed 50 | 50 50 Average Speed 102 | 95 103 Slowest Speed 120 | 120 120 Overloaded Moves . | . . Propulsion Burnouts . | . . Robots Hopped . | . . Potential Cave-ins . | . . Cave-ins Triggered . | . . Exploration Rate (%) 22 | 5 39 Regions Visited 1 Branch Regions . Pre-discovered Areas . | . . Known Exits Taken . | . . Unknown Exits Taken 1 | 1 . Scrap Searched . | . . Spaces Dug . | . . Terrain Destroyed 9 | . 9 Melee . | . . Projectile . | . . AOE 9 | . 9 Terrain Rammed . | . . Walls Destroyed . | . . Machines Disabled . | . . Actions | -11 -10 --------- Run | Yrd Mat Total 549 | 97 452 Wait . | . . Move 463 | 79 384 Hop . | . . Pick Up 17 | 8 9 Fast Attach . | . . Attach 13 | 6 7 Detach 1 | . 1 Swap 3 | . 3 Drop 4 | 2 2 Fire 48 | 2 46 Melee . | . . Ram . | . . Kick . | . . Crush . | . . Escape Stasis . | . . Rewire . | . . Trap . | . . Miscellaneous . | . . Route ------- -11/Scrapyard -10/Materials (discovered 2 exits: *Min / [*Sub]) History --------- Turn | Location | Event 2 | -11/Scrapyard | Met Revision 17 73 | -11/Scrapyard | Discovered new exit (range 8) 98 | -11/Scrapyard | Entered Materials 251 | -10/Materials | Discovered new exit (range 15) 254 | -10/Materials | Discovered new exit (range 9) 317 | -10/Materials | Build established: Mutant 389 | -10/Materials | Identified exit to Mines 561 | -10/Materials | Core integrity fell below 50% 579 | -10/Materials | Core integrity fell below 20% 604 | -10/Materials | Lost 6 parts (1p2n3w) 637 | -10/Materials | Destroyed by G-34 Mercenary with Small Laser Last Messages --------------- U-05 Engineer lays Concrete. R-06 Scavenger collects Wheel. G-34 Mercenary destroyed. R-06 Scavenger collects Aluminum Leg. U-05 Engineer builds a Wall. R-06 Scavenger collects Wheel. Sml. Laser destroyed. Aluminum Leg destroyed. R-06 Scavenger collects Heat Sink. R-06 Scavenger collects Sml. Laser. Acquired 5 matter. U-05 Engineer lays Concrete. R-06 Scavenger collects Aluminum Leg. U-05 Engineer lays Concrete. K-01 Serf cleans the TF Node. Acquired Mining Laser. Acquired Hover Unit. System corrupted: Energy discharge (-21). Acquired Mining Laser. [Achievement: First Step to Greatness] Map ----- +----------------------------------------------------+ | #########" #?????????????????????????????? | | !% #???????#"" > #?????????????????????????????? | | #???????#" #?????????????????????????????? | | ???????#" #?????????????????????????????? | | % ???????#""" #?????????????????????????????? | | ???????#### #########??????????????????????? | | ?????????# ### #??????????????????????? | | ??#####??# #??????????????????????? | | ??#< ?# ^ #??????????????????????? | | ?????# ?# """ #??????????????????????? | | ????????# # "T" #??????????????????????? | | ????????# # "^" #########???????????????? | | ????????# + ^ # #???????????????? | | ????????? # # #???????????????? | | ????????????### ^""" + ##########??????? | | ?????????????# """ # # #??????? | | ?????????????# """ ######### """ #??????? | | ?????????????# ######### """ #??????? | | ?????????????# # ##] """ #??????? | | ?????????????# # """ ## #??????? | | ????????????####+##### # """ ## """ #??????? | | ????????????# # + """ ## """ #??????? | | ????????????# """ #g # ## """ #??????? | | ????????????# """ # # ## #??????? | | ????????????# """ # gg##############+####?????? | | ????????????#! # @ #?????? | | ????????????# """ # #?????? | | ????????????# """ # #?????? | | ????????????# """ ####+######+###########?????? | | ????????????# ## # """ #???????????? | | ????????????###########! !! # "T" #???????????? | | ??????????????????????# ! # #???????????? | | ??????????????????????# # #???????????? | | ??????????????????????# # #???????????? | | ??????????????????????# # """" #???????????? | | ??????????????????????#! # """" #???????????? | | ??????????????????????####### """" #???????????? | | ????????????????????????????# #???????????? | | ????????????????????????????##########???????????? | | | | | | | | | | | | | | | | | | | | | | | +----------------------------------------------------+ Best States ------------- Heat Dissipation 35 Energy Generation 14 Energy Capacity 160 Matter Stores 400 Matter Capacity 400 Sight Range 16 Terrain Scan Density 10 Evasion (%) 55 Item Schematics ----------------- None Robot Schematics ------------------ None Fabricated ------------ Nothing Repaired ---------- Nothing Studied --------- None Alien Tech Used ----------------- None Achievements -------------- A Problem For Future Me First Step to Greatness Shopping List There's More Where That Came From Uninvited Guest Challenges ------------ None Game ------ Seed FactoryLongswordAutogun Manual? 0 Play Time 00:20:52 Cumulative 0.3 hours Start 2025.11.15 @ 18:50:28 End 2025.11.15 @ 19:09:50 Sessions 1 Manual Loads 0 Difficulty Rogue Special Mode None Game No. 1 Rogue 1 Adventurer 0 Explorer 0 Win Type - Total 0 Types 0/0/0/0/0/0/0/0/0/0 Lore% 0 Gallery% 0 Achievement% 1 Wizard Run 0 Options --------- Layout 1 ASCII 0 Keyboard 0 Movement Mouse Keybinds 0 Fullscreen 1 Font 32/SmallcapsGlow Map View 50x35 Zoom Use 0% Tactical HUD 0 Map Filters NONE Filters NONE Steam 1 RUN: 7ee13762-5c8b-480f-8355-338ef76b97ad